[Event "Late-Titled-Tuesday-Blitz-February-27-2024"]
[Site "Chess.com"]
[Date "2024.02.27"]
[Round "2"]
[White "Mr_Heisenberg13"]
[Black "MusicCityMaster"]
[Result "1-0"]
[WhiteElo "2842"]
[BlackElo "2559"]
[TimeControl "180+1"]
[EndTime "14:15:13 PST"]
[Termination "Mr_Heisenberg13 won by resignation"]

1. e4 {[%clk 0:03:00.9]} 1... e6 {[%clk 0:03:00.1]} 2. d4 {[%clk 0:02:59.1]}
2... d5 {[%clk 0:03:00.8]} 3. Nd2 {[%clk 0:02:59.3]} 3... Nc6 {[%clk 0:03:00.3]}
4. Ngf3 {[%clk 0:02:59]} 4... Nf6 {[%clk 0:02:59.3]} 5. e5 {[%clk 0:02:58.9]}
5... Nd7 {[%clk 0:03:00]} 6. Bd3 {[%clk 0:02:59.1]} 6... f6 {[%clk 0:02:58.9]}
7. Ng5 {[%clk 0:02:59.5]} 7... Ndxe5 {[%clk 0:02:07.1]} 8. dxe5 {[%clk
0:02:58.9]} 8... Nxe5 {[%clk 0:02:05.3]} 9. Ngf3 {[%clk 0:02:46.5]} 9... Nxd3+
{[%clk 0:02:04.6]} 10. cxd3 {[%clk 0:02:47.4]} 10... Bd6 {[%clk 0:02:00.8]} 11.
O-O {[%clk 0:02:43.7]} 11... O-O {[%clk 0:02:00.6]} 12. d4 {[%clk 0:02:43.3]}
12... c5 {[%clk 0:01:59.2]} 13. dxc5 {[%clk 0:02:42.2]} 13... Bxc5 {[%clk
0:01:58.2]} 14. Nb3 {[%clk 0:02:42.2]} 14... Bd6 {[%clk 0:01:58.4]} 15. Be3
{[%clk 0:02:36.4]} 15... b6 {[%clk 0:01:57]} 16. Rc1 {[%clk 0:02:34.6]} 16...
Bb7 {[%clk 0:01:57.1]} 17. Nbd4 {[%clk 0:02:30.6]} 17... e5 {[%clk 0:01:56.4]}
18. Ne6 {[%clk 0:02:28.3]} 18... Qe7 {[%clk 0:01:53.4]} 19. Nxf8 {[%clk
0:02:28.6]} 19... Rxf8 {[%clk 0:01:53.6]} 20. Qb3 {[%clk 0:02:28.5]} 20... Kh8
{[%clk 0:01:52.8]} 21. Rfe1 {[%clk 0:02:25.6]} 21... Qf7 {[%clk 0:01:42.9]} 22.
Red1 {[%clk 0:02:21]} 22... e4 {[%clk 0:01:36.1]} 23. Nd4 {[%clk 0:02:19.3]}
23... f5 {[%clk 0:01:32.4]} 24. Nb5 {[%clk 0:02:12.4]} 24... Bb8 {[%clk
0:01:30.8]} 25. Bd4 {[%clk 0:02:06.8]} 25... f4 {[%clk 0:01:22.2]} 26. Qh3
{[%clk 0:02:05.1]} 26... a6 {[%clk 0:01:18.8]} 27. Nc3 {[%clk 0:02:02.1]} 27...
Bc8 {[%clk 0:01:19]} 28. Qh4 {[%clk 0:02:01.2]} 28... Bd6 {[%clk 0:01:04.9]} 29.
Nxd5 {[%clk 0:01:59.8]} 29... f3 {[%clk 0:01:00.6]} 30. g3 {[%clk 0:01:57.6]}
30... Kg8 {[%clk 0:00:57.1]} 31. Qxe4 {[%clk 0:01:45.1]} 31... Qh5 {[%clk
0:00:52.6]} 32. Ne7+ {[%clk 0:01:39.5]} 32... Bxe7 {[%clk 0:00:49.6]} 33. Qxe7
{[%clk 0:01:38.1]} 1-0

[Event "Late-Titled-Tuesday-Blitz-February-27-2024"]
[Site "Chess.com"]
[Date "2024.02.27"]
[Round "2"]
[White "best926"]
[Black "Adar_07"]
[Result "0-1"]
[WhiteElo "2542"]
[BlackElo "2785"]
[TimeControl "180+1"]
[EndTime "14:15:26 PST"]
[Termination "Adar_07 won by resignation"]

1. Nf3 {[%clk 0:03:00.9]} 1... Nf6 {[%clk 0:02:59.7]} 2. g3 {[%clk 0:03:01]}
2... g6 {[%clk 0:02:59.3]} 3. Bg2 {[%clk 0:03:01.3]} 3... Bg7 {[%clk 0:02:59.1]}
4. O-O {[%clk 0:03:02.2]} 4... O-O {[%clk 0:02:59.4]} 5. d3 {[%clk 0:03:03.1]}
5... c5 {[%clk 0:02:59.5]} 6. e4 {[%clk 0:03:02.8]} 6... b6 {[%clk 0:02:59]} 7.
c3 {[%clk 0:02:50.4]} 7... Bb7 {[%clk 0:02:58.8]} 8. Na3 {[%clk 0:02:44.6]} 8...
Nc6 {[%clk 0:02:55.8]} 9. Re1 {[%clk 0:02:38.5]} 9... d6 {[%clk 0:02:48.3]} 10.
Nc2 {[%clk 0:02:25.5]} 10... Qc7 {[%clk 0:02:41.4]} 11. d4 {[%clk 0:02:19.8]}
11... cxd4 {[%clk 0:02:36.6]} 12. cxd4 {[%clk 0:02:20.7]} 12... Rac8 {[%clk
0:02:36.8]} 13. d5 {[%clk 0:02:18.3]} 13... Ne5 {[%clk 0:02:23]} 14. Ncd4 {[%clk
0:02:18.2]} 14... Nxf3+ {[%clk 0:02:22.5]} 15. Bxf3 {[%clk 0:02:19.1]} 15... Nd7
{[%clk 0:02:22.3]} 16. Be3 {[%clk 0:01:16.8]} 16... Ne5 {[%clk 0:02:20.1]} 17.
Be2 {[%clk 0:01:17.3]} 17... Nc4 {[%clk 0:02:15.5]} 18. Bxc4 {[%clk 0:01:12.8]}
18... Qxc4 {[%clk 0:02:16.4]} 19. Qd2 {[%clk 0:01:13.4]} 19... Qc7 {[%clk
0:01:48.5]} 20. a4 {[%clk 0:01:01.9]} 20... Qd7 {[%clk 0:01:45]} 21. b3 {[%clk
0:00:46.5]} 21... e5 {[%clk 0:01:24.2]} 22. Ne6 {[%clk 0:00:36.3]} 22... fxe6
{[%clk 0:01:25.1]} 0-1

[Event "Late-Titled-Tuesday-Blitz-February-27-2024"]
[Site "Chess.com"]
[Date "2024.02.27"]
[Round "2"]
[White "js20000"]
[Black "Bilan_Danila"]
[Result "1-0"]
[WhiteElo "2831"]
[BlackElo "2553"]
[TimeControl "180+1"]
[EndTime "14:15:30 PST"]
[Termination "js20000 won by resignation"]

1. Nf3 {[%clk 0:03:00.9]} 1... d5 {[%clk 0:02:58.9]} 2. g3 {[%clk 0:03:00.6]}
2... Nf6 {[%clk 0:02:58.4]} 3. Bg2 {[%clk 0:03:00.1]} 3... Bf5 {[%clk
0:02:57.7]} 4. c4 {[%clk 0:02:57.3]} 4... c6 {[%clk 0:02:56.6]} 5. Qb3 {[%clk
0:02:50.1]} 5... Qb6 {[%clk 0:02:54.7]} 6. d3 {[%clk 0:02:50.3]} 6... e6 {[%clk
0:02:49.9]} 7. Be3 {[%clk 0:02:43]} 7... Qxb3 {[%clk 0:02:44.3]} 8. axb3 {[%clk
0:02:43.9]} 8... a6 {[%clk 0:02:43.7]} 9. Nd4 {[%clk 0:02:30.9]} 9... Bg6 {[%clk
0:02:39.3]} 10. cxd5 {[%clk 0:02:27.7]} 10... exd5 {[%clk 0:02:36.2]} 11. Nc2
{[%clk 0:02:26.1]} 11... Nbd7 {[%clk 0:02:28.3]} 12. b4 {[%clk 0:02:25.2]} 12...
Rc8 {[%clk 0:02:20.6]} 13. Nc3 {[%clk 0:02:24.4]} 13... Bd6 {[%clk 0:02:11.8]}
14. f4 {[%clk 0:02:22.8]} 14... O-O {[%clk 0:02:01.4]} 15. Bd4 {[%clk
0:02:21.6]} 15... Rfe8 {[%clk 0:01:54.9]} 16. O-O {[%clk 0:02:12]} 16... h5
{[%clk 0:01:24.2]} 17. Rae1 {[%clk 0:02:06.1]} 17... Bf5 {[%clk 0:01:05.6]} 18.
e4 {[%clk 0:02:03]} 18... dxe4 {[%clk 0:01:04.1]} 19. dxe4 {[%clk 0:02:03.3]}
19... Be6 {[%clk 0:01:03.1]} 20. e5 {[%clk 0:02:03.5]} 20... Bf5 {[%clk
0:00:51.8]} 21. Ne3 {[%clk 0:01:59.5]} 21... Bd3 {[%clk 0:00:42.4]} 22. exd6
{[%clk 0:01:56.4]} 22... Bxf1 {[%clk 0:00:40.8]} 23. Kxf1 {[%clk 0:01:57.3]}
23... Ng4 {[%clk 0:00:35.7]} 24. Nxg4 {[%clk 0:01:55.5]} 24... Rxe1+ {[%clk
0:00:35.3]} 25. Kxe1 {[%clk 0:01:55.5]} 25... hxg4 {[%clk 0:00:36.2]} 26. h3
{[%clk 0:01:54]} 26... gxh3 {[%clk 0:00:21.3]} 27. Bxh3 {[%clk 0:01:53.2]} 27...
Re8+ {[%clk 0:00:22.2]} 28. Kd2 {[%clk 0:01:53]} 28... Nf6 {[%clk 0:00:19.1]}
29. Bxf6 {[%clk 0:01:51.1]} 29... gxf6 {[%clk 0:00:20]} 30. d7 {[%clk
0:01:51.2]} 30... Rd8 {[%clk 0:00:20.1]} 31. Ne4 {[%clk 0:01:50.9]} 1-0

[Event "Late-Titled-Tuesday-Blitz-February-27-2024"]
[Site "Chess.com"]
[Date "2024.02.27"]
[Round "2"]
[White "FernandoArauzAlonso"]
[Black "KuzubovYuriy"]
[Result "0-1"]
[WhiteElo "2600"]
[BlackElo "2944"]
[TimeControl "180+1"]
[EndTime "14:15:40 PST"]
[Termination "KuzubovYuriy won by resignation"]

1. Nf3 {[%clk 0:03:00.9]} 1... d5 {[%clk 0:02:59.6]} 2. g3 {[%clk 0:03:00.6]}
2... g6 {[%clk 0:02:58.8]} 3. Bg2 {[%clk 0:03:00.3]} 3... Bg7 {[%clk 0:02:59.1]}
4. O-O {[%clk 0:03:00.1]} 4... c5 {[%clk 0:02:58.2]} 5. d3 {[%clk 0:02:58.6]}
5... Nc6 {[%clk 0:02:57.9]} 6. Nbd2 {[%clk 0:02:57]} 6... e6 {[%clk 0:02:57.7]}
7. e4 {[%clk 0:02:57]} 7... Nge7 {[%clk 0:02:58.3]} 8. Re1 {[%clk 0:02:56.6]}
8... b6 {[%clk 0:02:57.5]} 9. c3 {[%clk 0:02:47.6]} 9... Ba6 {[%clk 0:02:54.7]}
10. Bf1 {[%clk 0:02:21.3]} 10... d4 {[%clk 0:02:46.2]} 11. c4 {[%clk 0:02:12.4]}
11... e5 {[%clk 0:02:44.4]} 12. h4 {[%clk 0:01:58.2]} 12... Bc8 {[%clk
0:02:43.8]} 13. Kh2 {[%clk 0:01:55.3]} 13... Qd6 {[%clk 0:02:38.2]} 14. Ng1
{[%clk 0:01:51.7]} 14... O-O {[%clk 0:02:36]} 15. Bh3 {[%clk 0:01:50.3]} 15...
f5 {[%clk 0:02:33.1]} 16. f3 {[%clk 0:01:43.3]} 16... f4 {[%clk 0:02:30.5]} 17.
g4 {[%clk 0:01:38.7]} 17... h6 {[%clk 0:02:18.6]} 18. Qe2 {[%clk 0:01:34]} 18...
Bf6 {[%clk 0:02:16.4]} 19. Qf2 {[%clk 0:01:24.7]} 19... Kg7 {[%clk 0:02:15.8]}
20. Nf1 {[%clk 0:00:59.1]} 20... Ng8 {[%clk 0:02:04.6]} 21. h5 {[%clk
0:00:44.7]} 21... Qe7 {[%clk 0:02:02.3]} 22. hxg6 {[%clk 0:00:41]} 22... Bh4
{[%clk 0:02:02]} 23. Qe2 {[%clk 0:00:37.8]} 23... Bxe1 {[%clk 0:01:59.9]} 24.
Qxe1 {[%clk 0:00:38.7]} 24... Qg5 {[%clk 0:01:58.3]} 25. Qf2 {[%clk 0:00:33.3]}
25... Nge7 {[%clk 0:01:56.7]} 26. Bd2 {[%clk 0:00:30.6]} 26... Nxg6 {[%clk
0:01:56.4]} 27. Be1 {[%clk 0:00:31.2]} 27... Rh8 {[%clk 0:01:55.7]} 28. Kh1
{[%clk 0:00:28.9]} 28... h5 {[%clk 0:01:53.5]} 29. gxh5 {[%clk 0:00:26]} 29...
Rxh5 {[%clk 0:01:52.5]} 30. Qg2 {[%clk 0:00:21.5]} 30... Bxh3 {[%clk 0:01:48.1]}
31. Nxh3 {[%clk 0:00:22.4]} 31... Rah8 {[%clk 0:01:45.8]} 32. Qxg5 {[%clk
0:00:19.6]} 32... Rxg5 {[%clk 0:01:46]} 33. Kh2 {[%clk 0:00:15.9]} 33... Rgh5
{[%clk 0:01:46.3]} 0-1

[Event "Late-Titled-Tuesday-Blitz-February-27-2024"]
[Site "Chess.com"]
[Date "2024.02.27"]
[Round "2"]
[White "morte-negra"]
[Black "Inepton_Fermion"]
[Result "0-1"]
[WhiteElo "2021"]
[BlackElo "2430"]
[TimeControl "180+1"]
[EndTime "14:15:41 PST"]
[Termination "Inepton_Fermion won by resignation"]

1. e4 {[%clk 0:03:00.9]} 1... c5 {[%clk 0:02:52]} 2. Nf3 {[%clk 0:02:54.4]} 2...
e6 {[%clk 0:02:52]} 3. d4 {[%clk 0:02:54.9]} 3... cxd4 {[%clk 0:02:52.9]} 4.
Nxd4 {[%clk 0:02:55]} 4... Nf6 {[%clk 0:02:53.5]} 5. Nc3 {[%clk 0:02:54.8]} 5...
Nc6 {[%clk 0:02:54.2]} 6. Nxc6 {[%clk 0:02:54.2]} 6... bxc6 {[%clk 0:02:54.3]}
7. e5 {[%clk 0:02:54.6]} 7... Nd5 {[%clk 0:02:54.7]} 8. Ne4 {[%clk 0:02:54]}
8... Qc7 {[%clk 0:02:53.8]} 9. f4 {[%clk 0:02:52.6]} 9... Rb8 {[%clk 0:02:53.7]}
10. c4 {[%clk 0:02:51.1]} 10... Bb4+ {[%clk 0:02:53]} 11. Bd2 {[%clk 0:02:48.9]}
11... Nxf4 {[%clk 0:02:42.9]} 12. Bxb4 {[%clk 0:02:47.7]} 12... Qxe5 {[%clk
0:02:22.1]} 13. Qf3 {[%clk 0:02:43.9]} 13... Rxb4 {[%clk 0:02:17]} 14. g3 {[%clk
0:02:12.2]} 14... Ng6 {[%clk 0:01:38.7]} 15. Be2 {[%clk 0:02:05]} 15... f5
{[%clk 0:01:33.9]} 16. Nc3 {[%clk 0:01:35.3]} 16... Rxb2 {[%clk 0:01:29.3]} 17.
O-O {[%clk 0:01:32.8]} 17... O-O {[%clk 0:01:20.1]} 18. Rae1 {[%clk 0:01:25.8]}
18... Ba6 {[%clk 0:01:15.6]} 19. Kh1 {[%clk 0:01:01.7]} 19... c5 {[%clk
0:01:09.2]} 20. Na4 {[%clk 0:00:31.5]} 20... Bb7 {[%clk 0:01:03.6]} 0-1

[Event "Late-Titled-Tuesday-Blitz-February-27-2024"]
[Site "Chess.com"]
[Date "2024.02.27"]
[Round "2"]
[White "rasmussvane"]
[Black "robertoalejandro10"]
[Result "1-0"]
[WhiteElo "2942"]
[BlackElo "2600"]
[TimeControl "180+1"]
[EndTime "14:15:48 PST"]
[Termination "rasmussvane won by resignation"]

1. Nf3 {[%clk 0:02:55.9]} 1... Nf6 {[%clk 0:02:56.3]} 2. g3 {[%clk 0:02:52.7]}
2... g6 {[%clk 0:02:55.9]} 3. Bg2 {[%clk 0:02:52.5]} 3... Bg7 {[%clk 0:02:56]}
4. O-O {[%clk 0:02:49.6]} 4... O-O {[%clk 0:02:55.8]} 5. d4 {[%clk 0:02:49.8]}
5... c5 {[%clk 0:02:51.1]} 6. dxc5 {[%clk 0:02:46.9]} 6... Na6 {[%clk
0:02:49.4]} 7. Be3 {[%clk 0:02:46.1]} 7... Qc7 {[%clk 0:02:35.5]} 8. Bd4 {[%clk
0:02:39.9]} 8... Nxc5 {[%clk 0:02:27.7]} 9. Nc3 {[%clk 0:02:40.2]} 9... d6
{[%clk 0:02:11.9]} 10. Bxf6 {[%clk 0:02:40.2]} 10... exf6 {[%clk 0:02:12.8]} 11.
Nd5 {[%clk 0:02:39.6]} 11... Qd8 {[%clk 0:02:12.3]} 12. c3 {[%clk 0:02:39.6]}
12... Be6 {[%clk 0:02:10.8]} 13. Nd4 {[%clk 0:02:39.8]} 13... Rb8 {[%clk
0:01:50.4]} 14. e3 {[%clk 0:02:38.1]} 14... f5 {[%clk 0:01:49.5]} 15. Qe2 {[%clk
0:02:35.6]} 15... Ne4 {[%clk 0:01:46.1]} 16. Nf4 {[%clk 0:02:31]} 16... Qe7
{[%clk 0:01:38.2]} 17. Rfd1 {[%clk 0:02:27.8]} 17... Rfd8 {[%clk 0:01:34.4]} 18.
Qc2 {[%clk 0:02:22.7]} 18... d5 {[%clk 0:01:27.1]} 19. a4 {[%clk 0:02:15.1]}
19... Rbc8 {[%clk 0:01:26]} 20. Qb3 {[%clk 0:02:13.6]} 20... Rc4 {[%clk
0:00:50.2]} 21. Bf1 {[%clk 0:02:00.7]} 21... Rcc8 {[%clk 0:00:50.1]} 22. a5
{[%clk 0:01:54]} 22... a6 {[%clk 0:00:49.6]} 23. Qa3 {[%clk 0:01:50.6]} 23...
Qxa3 {[%clk 0:00:45.8]} 24. Rxa3 {[%clk 0:01:51.5]} 24... Bf8 {[%clk 0:00:26]}
25. Rb3 {[%clk 0:01:33.7]} 25... Nc5 {[%clk 0:00:25.7]} 26. Rb6 {[%clk
0:01:33.4]} 26... Rc6 {[%clk 0:00:14.4]} 27. Nxc6 {[%clk 0:01:31.3]} 27... bxc6
{[%clk 0:00:14.2]} 28. Rxc6 {[%clk 0:01:23.6]} 1-0

[Event "Late-Titled-Tuesday-Blitz-February-27-2024"]
[Site "Chess.com"]
[Date "2024.02.27"]
[Round "2"]
[White "BogdanDeac"]
[Black "Roberz12"]
[Result "1-0"]
[WhiteElo "2962"]
[BlackElo "2602"]
[TimeControl "180+1"]
[EndTime "14:15:52 PST"]
[Termination "BogdanDeac won by resignation"]

1. b3 {[%clk 0:03:00.9]} 1... Nf6 {[%clk 0:02:59.5]} 2. Bb2 {[%clk 0:03:01.1]}
2... Nc6 {[%clk 0:02:58.9]} 3. Nf3 {[%clk 0:03:01.2]} 3... d5 {[%clk 0:02:58.4]}
4. e3 {[%clk 0:03:00]} 4... g6 {[%clk 0:02:58.8]} 5. c4 {[%clk 0:02:56.8]} 5...
dxc4 {[%clk 0:02:50.8]} 6. bxc4 {[%clk 0:02:56.5]} 6... Bg7 {[%clk 0:02:50.7]}
7. d4 {[%clk 0:02:57.1]} 7... O-O {[%clk 0:02:50.5]} 8. Be2 {[%clk 0:02:57.8]}
8... Bf5 {[%clk 0:02:49.3]} 9. O-O {[%clk 0:02:57.5]} 9... Ne4 {[%clk
0:02:31.8]} 10. Nbd2 {[%clk 0:02:53.7]} 10... Re8 {[%clk 0:02:16.7]} 11. a3
{[%clk 0:02:43.6]} 11... Nxd2 {[%clk 0:02:16.4]} 12. Nxd2 {[%clk 0:02:43.2]}
12... e5 {[%clk 0:02:04.5]} 13. d5 {[%clk 0:02:43]} 13... Ne7 {[%clk 0:02:01.7]}
14. e4 {[%clk 0:02:42.9]} 14... Bd7 {[%clk 0:02:01.4]} 15. c5 {[%clk 0:02:42.6]}
15... f5 {[%clk 0:01:52]} 16. f3 {[%clk 0:02:40.5]} 16... Nc8 {[%clk 0:01:29.8]}
17. Qb3 {[%clk 0:02:36.7]} 17... Kh8 {[%clk 0:00:51.2]} 18. Qxb7 {[%clk
0:02:28.8]} 18... Ne7 {[%clk 0:00:51.6]} 19. Bc3 {[%clk 0:02:09.5]} 19... c6
{[%clk 0:00:28.5]} 20. d6 {[%clk 0:02:05.1]} 20... Ng8 {[%clk 0:00:28.4]} 21.
Nc4 {[%clk 0:02:05.3]} 21... Rb8 {[%clk 0:00:22.7]} 22. Qxa7 {[%clk 0:02:00.4]}
22... Rb3 {[%clk 0:00:20.1]} 23. Rac1 {[%clk 0:01:56.7]} 23... Nh6 {[%clk
0:00:19.2]} 24. Nb6 {[%clk 0:01:44.4]} 24... Be6 {[%clk 0:00:12.5]} 25. Qa4
{[%clk 0:01:38.3]} 25... Bg8 {[%clk 0:00:08.5]} 26. Bc4 {[%clk 0:01:34.1]} 26...
Bxc4 {[%clk 0:00:07]} 27. Qxc4 {[%clk 0:01:28.9]} 27... Rxa3 {[%clk 0:00:07.2]}
28. Ra1 {[%clk 0:01:29]} 28... Ra2 {[%clk 0:00:07.2]} 1-0

[Event "Late-Titled-Tuesday-Blitz-February-27-2024"]
[Site "Chess.com"]
[Date "2024.02.27"]
[Round "2"]
[White "MatyChess1"]
[Black "nihalsarin"]
[Result "0-1"]
[WhiteElo "2654"]
[BlackElo "3190"]
[TimeControl "180+1"]
[EndTime "14:15:53 PST"]
[Termination "nihalsarin won by resignation"]

1. Nf3 {[%clk 0:03:00.9]} 1... Nf6 {[%clk 0:02:57.4]} 2. g3 {[%clk 0:03:01.1]}
2... c5 {[%clk 0:02:55.2]} 3. Bg2 {[%clk 0:02:59.1]} 3... Nc6 {[%clk 0:02:55.9]}
4. O-O {[%clk 0:02:57.8]} 4... e5 {[%clk 0:02:56.6]} 5. e4 {[%clk 0:02:56.4]}
5... Be7 {[%clk 0:02:55.2]} 6. Re1 {[%clk 0:02:52.4]} 6... O-O {[%clk
0:02:55.8]} 7. c3 {[%clk 0:02:52.9]} 7... d6 {[%clk 0:02:54.3]} 8. d4 {[%clk
0:02:53.1]} 8... cxd4 {[%clk 0:02:55]} 9. cxd4 {[%clk 0:02:54]} 9... Bg4 {[%clk
0:02:55.7]} 10. dxe5 {[%clk 0:02:53.6]} 10... dxe5 {[%clk 0:02:54]} 11. Nc3
{[%clk 0:02:44.5]} 11... Qxd1 {[%clk 0:02:53.3]} 12. Nxd1 {[%clk 0:02:44.4]}
12... Bb4 {[%clk 0:02:51.3]} 13. Nc3 {[%clk 0:02:44]} 13... Bxc3 {[%clk
0:02:50.2]} 14. bxc3 {[%clk 0:02:44.1]} 14... Rfd8 {[%clk 0:02:51]} 15. Nd2
{[%clk 0:02:41.8]} 15... Rac8 {[%clk 0:02:48.2]} 16. f3 {[%clk 0:02:42]} 16...
Be6 {[%clk 0:02:48.1]} 17. Nf1 {[%clk 0:02:38.1]} 17... Na5 {[%clk 0:02:46.9]}
18. f4 {[%clk 0:02:22.8]} 18... Rxc3 {[%clk 0:02:41.5]} 19. Bd2 {[%clk
0:02:22.8]} 19... Ra3 {[%clk 0:02:41.7]} 20. fxe5 {[%clk 0:02:14.1]} 20... Ng4
{[%clk 0:02:38.6]} 21. Bb4 {[%clk 0:02:13.2]} 21... Ra4 {[%clk 0:02:36.7]} 22.
Bd6 {[%clk 0:02:13.2]} 22... Nc4 {[%clk 0:02:36.2]} 23. Red1 {[%clk 0:01:54.9]}
23... h6 {[%clk 0:02:35.9]} 24. Rd4 {[%clk 0:01:40.5]} 24... b5 {[%clk
0:02:33.2]} 25. h3 {[%clk 0:01:38.6]} 25... Nxd6 {[%clk 0:02:18.5]} 26. Rxd6
{[%clk 0:00:50.2]} 26... Rxd6 {[%clk 0:02:18]} 27. exd6 {[%clk 0:00:51.1]} 27...
Ne5 {[%clk 0:02:18.7]} 28. Ne3 {[%clk 0:00:48.4]} 28... Rxa2 {[%clk 0:02:11.9]}
29. Rc1 {[%clk 0:00:47]} 29... b4 {[%clk 0:02:11.3]} 30. Rc5 {[%clk 0:00:35.4]}
30... f6 {[%clk 0:02:05.9]} 31. Rb5 {[%clk 0:00:34.7]} 31... a5 {[%clk
0:02:06.1]} 32. Nf5 {[%clk 0:00:29.5]} 32... Rd2 {[%clk 0:01:59.3]} 33. Rxa5
{[%clk 0:00:20.4]} 33... b3 {[%clk 0:01:55.3]} 34. Rb5 {[%clk 0:00:17.7]} 34...
b2 {[%clk 0:01:55.4]} 35. Ne3 {[%clk 0:00:15.4]} 35... Ba2 {[%clk 0:01:52]} 0-1

[Event "Late-Titled-Tuesday-Blitz-February-27-2024"]
[Site "Chess.com"]
[Date "2024.02.27"]
[Round "2"]
[White "EDaMatta"]
[Black "Romadk"]
[Result "0-1"]
[WhiteElo "2224"]
[BlackElo "2491"]
[TimeControl "180+1"]
[EndTime "14:15:54 PST"]
[Termination "Romadk won by resignation"]

1. d4 {[%clk 0:03:00.9]} 1... Nf6 {[%clk 0:03:00.9]} 2. c4 {[%clk 0:02:58.5]}
2... e6 {[%clk 0:03:00.6]} 3. Nc3 {[%clk 0:02:59]} 3... Bb4 {[%clk 0:03:00.4]}
4. e3 {[%clk 0:02:58.8]} 4... O-O {[%clk 0:03:00]} 5. Bd3 {[%clk 0:02:59.4]}
5... d5 {[%clk 0:02:59.7]} 6. cxd5 {[%clk 0:02:58.8]} 6... exd5 {[%clk 0:02:59]}
7. Ne2 {[%clk 0:02:59.7]} 7... Nc6 {[%clk 0:02:49.7]} 8. O-O {[%clk 0:02:59.4]}
8... Ne7 {[%clk 0:02:50]} 9. a3 {[%clk 0:02:57]} 9... Bd6 {[%clk 0:02:49.5]} 10.
f3 {[%clk 0:02:50.9]} 10... c5 {[%clk 0:02:45.4]} 11. dxc5 {[%clk 0:02:49]}
11... Bxc5 {[%clk 0:02:46.3]} 12. Nd4 {[%clk 0:02:49.2]} 12... Nc6 {[%clk
0:02:37.8]} 13. Kh1 {[%clk 0:02:45.6]} 13... Re8 {[%clk 0:02:35.2]} 14. b4
{[%clk 0:02:41.8]} 14... Bb6 {[%clk 0:02:31.1]} 15. b5 {[%clk 0:02:31.5]} 15...
Nxd4 {[%clk 0:02:31.3]} 16. exd4 {[%clk 0:02:32.1]} 16... h6 {[%clk 0:02:30]}
17. Bc2 {[%clk 0:02:27.9]} 17... Qc7 {[%clk 0:02:22.9]} 18. Qd3 {[%clk
0:02:26.6]} 18... Ba5 {[%clk 0:02:14.6]} 19. Bd2 {[%clk 0:02:21]} 19... g6
{[%clk 0:02:10.3]} 20. Rac1 {[%clk 0:02:17.6]} 20... Bf5 {[%clk 0:02:07.8]} 21.
b6 {[%clk 0:01:49.1]} 21... Bxd3 {[%clk 0:01:57.5]} 22. bxc7 {[%clk 0:01:48.3]}
22... Bxf1 {[%clk 0:01:57.6]} 23. Rxf1 {[%clk 0:01:46.4]} 23... Rac8 {[%clk
0:01:53.4]} 24. Nxd5 {[%clk 0:01:43]} 24... Nxd5 {[%clk 0:01:52.5]} 25. Bxa5
{[%clk 0:01:42.6]} 25... b6 {[%clk 0:01:52.9]} 26. Bd2 {[%clk 0:01:31.7]} 26...
Rxc7 {[%clk 0:01:52.2]} 27. Ba4 {[%clk 0:01:28.7]} 27... Re2 {[%clk 0:01:50.2]}
28. Bxh6 {[%clk 0:01:28.6]} 28... Ne3 {[%clk 0:01:44.9]} 29. Rg1 {[%clk
0:01:24.2]} 29... Nf5 {[%clk 0:01:40.2]} 30. Bf4 {[%clk 0:01:22.9]} 30... Rc3
{[%clk 0:01:26.5]} 31. Bb5 {[%clk 0:01:16.7]} 31... Rb2 {[%clk 0:01:23.4]} 32.
a4 {[%clk 0:01:12.9]} 32... Nxd4 {[%clk 0:01:23.3]} 33. Be5 {[%clk 0:01:11]}
33... Nxb5 {[%clk 0:01:22]} 34. axb5 {[%clk 0:01:09.3]} 34... Rcc2 {[%clk
0:01:13]} 35. Bxb2 {[%clk 0:01:09]} 35... Rxb2 {[%clk 0:01:13.9]} 36. h4 {[%clk
0:01:02.4]} 36... Rxb5 {[%clk 0:01:13.4]} 37. Rc1 {[%clk 0:01:00.1]} 37... a5
{[%clk 0:01:11.5]} 38. Rc7 {[%clk 0:01:00.1]} 38... a4 {[%clk 0:01:11]} 39. Ra7
{[%clk 0:00:59.4]} 39... Rb4 {[%clk 0:01:10.6]} 40. g4 {[%clk 0:00:58.6]} 40...
b5 {[%clk 0:01:10.6]} 41. h5 {[%clk 0:00:57.1]} 41... gxh5 {[%clk 0:01:09.9]}
42. gxh5 {[%clk 0:00:58]} 42... Rh4+ {[%clk 0:01:07.9]} 43. Kg2 {[%clk
0:00:58.3]} 43... Rxh5 {[%clk 0:01:08.3]} 0-1

[Event "Late-Titled-Tuesday-Blitz-February-27-2024"]
[Site "Chess.com"]
[Date "2024.02.27"]
[Round "2"]
[White "AlexPapasimakopoulos"]
[Black "SergioMoralesG"]
[Result "1-0"]
[WhiteElo "2739"]
[BlackElo "2527"]
[TimeControl "180+1"]
[EndTime "14:15:58 PST"]
[Termination "AlexPapasimakopoulos won on time"]

1. d4 {[%clk 0:03:00.9]} 1... d5 {[%clk 0:02:19.2]} 2. c4 {[%clk 0:02:58.1]}
2... c6 {[%clk 0:02:19.4]} 3. cxd5 {[%clk 0:02:58.2]} 3... cxd5 {[%clk
0:02:20.3]} 4. Bf4 {[%clk 0:02:58.3]} 4... Nc6 {[%clk 0:02:19.7]} 5. e3 {[%clk
0:02:58.3]} 5... Nf6 {[%clk 0:02:20.3]} 6. Nc3 {[%clk 0:02:58.3]} 6... Bf5
{[%clk 0:02:20.9]} 7. Qb3 {[%clk 0:02:58]} 7... Na5 {[%clk 0:02:20.3]} 8. Qa4+
{[%clk 0:02:58.4]} 8... Bd7 {[%clk 0:02:21]} 9. Qc2 {[%clk 0:02:58.6]} 9... e6
{[%clk 0:02:21.5]} 10. Nf3 {[%clk 0:02:58.3]} 10... Rc8 {[%clk 0:02:21.5]} 11.
Bd3 {[%clk 0:02:58.3]} 11... Bb4 {[%clk 0:02:21.5]} 12. O-O {[%clk 0:02:58.1]}
12... O-O {[%clk 0:02:21.7]} 13. Ne5 {[%clk 0:02:58.4]} 13... h6 {[%clk
0:02:18.8]} 14. Rfc1 {[%clk 0:02:57.3]} 14... Bxc3 {[%clk 0:02:18.6]} 15. bxc3
{[%clk 0:02:57.2]} 15... Nc4 {[%clk 0:02:15.2]} 16. Bxc4 {[%clk 0:02:30.9]}
16... dxc4 {[%clk 0:02:14.3]} 17. Nxd7 {[%clk 0:02:30.9]} 17... Qxd7 {[%clk
0:02:12]} 18. e4 {[%clk 0:02:31]} 18... Qc6 {[%clk 0:02:04.6]} 19. f3 {[%clk
0:02:31.1]} 19... Nd7 {[%clk 0:01:55.3]} 20. Re1 {[%clk 0:02:23.7]} 20... b5
{[%clk 0:01:47.3]} 21. a4 {[%clk 0:02:22.1]} 21... a6 {[%clk 0:01:42.2]} 22.
axb5 {[%clk 0:02:21.5]} 22... axb5 {[%clk 0:01:42.2]} 23. h3 {[%clk 0:02:15.7]}
23... Qb6 {[%clk 0:01:37.1]} 24. Kh1 {[%clk 0:02:11.5]} 24... Ra8 {[%clk
0:01:29.2]} 25. Qb2 {[%clk 0:02:11.2]} 25... Qb7 {[%clk 0:01:08.4]} 26. Rxa8
{[%clk 0:01:57.5]} 26... Rxa8 {[%clk 0:01:07.7]} 27. Rb1 {[%clk 0:01:58]} 27...
Ra5 {[%clk 0:01:04.7]} 28. Bd6 {[%clk 0:01:57.7]} 28... Nb6 {[%clk 0:00:47.1]}
29. Qb4 {[%clk 0:01:53.9]} 29... Qa6 {[%clk 0:00:42.3]} 30. Bc7 {[%clk
0:01:52.6]} 30... Ra1 {[%clk 0:00:27.3]} 31. Rxa1 {[%clk 0:01:50.5]} 31... Qxa1+
{[%clk 0:00:28.2]} 32. Kh2 {[%clk 0:01:50.9]} 32... Na4 {[%clk 0:00:23.4]} 33.
Qxb5 {[%clk 0:01:50.2]} 33... Qa2 {[%clk 0:00:03.1]} 34. Qe8+ {[%clk 0:01:44.5]}
34... Kh7 {[%clk 0:00:03.3]} 35. Qxf7 {[%clk 0:01:44.7]} 35... Nxc3 {[%clk
0:00:03.6]} 36. Be5 {[%clk 0:01:43.9]} 1-0